Cogmind - Beta 11.1 @@@ ROGUE MODE // 2022.06.10 @ 01:37:26 Player: Ruxi Result: Destroyed by 8R-AWN with 8R-AWN's Boregun Performance ------------- Evolutions (0) 0 Regions Visited (3) 600 Robots Destroyed (23) 115 Value Destroyed (508) 508 Prototype IDs (23) 460 Alien Tech Used (0) 0 Bonus (-293) -293 TOTAL SCORE: 1390 Bonus ------- Aligned with FarCom 300 Friendly Fire -593 Cogmind --------- Core Integrity 0/250 Matter 176/300 Energy 87/100 System Corruption 0% Temperature Cool (0) Movement Treading (160) Location -10/Exiles Parts ------- > --- POWER (1) -------- (None) > --- PROPULSION (2) --- Light Treads Light Treads > --- UTILITY (2) ------ Propulsion Shielding Weapon Shielding > --- WEAPON (2) ------- Hammer Mining Claw > --- INVENTORY (5) ---- Light Treads Potential Leg Potential Leg Hammer Peak State ------------ > --- POWER ------------ Ion Engine > --- PROPULSION ------- Potential Leg Potential Leg > --- UTILITY ---------- Large Storage Unit Propulsion Shielding > --- WEAPON ----------- Hammer Mining Claw > --- INVENTORY -------- Ion Engine Light Treads Light Treads Light Treads Weapon Shielding Hammer [Rating: 25] Favorites ----------- Power Ion Engine Engine Ion Engine Propulsion Light Treads Treads Light Treads Leg Aluminum Leg Utility Large Storage Unit Device Heat Sink Storage Large Storage Unit Hackware Hacking Suite Protection Weapon Shielding Weapon Assault Rifle Energy Gun EM Pulse Gun Ballistic Gun Assault Rifle Ballistic Cannon Light Cannon Launcher Rocket Launcher Impact Weapon Hammer Slashing Weapon Mining Claw Build | -11 -10 -10 -10 ------- Run | Scr Mat Min Exi Slots Evolved . | . . . . Power . | . . . . Propulsion . | . . . . Utility . | . . . . Weapon . | . . . . Parts Attached 36 | . 20 2 14 Power 7 | . 5 . 2 Engine 7 | . 5 . 2 Core . | . . . . Reactor . | . . . . Propulsion 12 | . 5 1 6 Treads 10 | . 5 1 4 Leg 2 | . . . 2 Wheel . | . . . . Hover . | . . . . Flight . | . . . . Utility 9 | . 4 1 4 Device 3 | . 2 1 . Storage 2 | . 1 . 1 Processor . | . . . . Hackware 1 | . 1 . . Protection 3 | . . . 3 Artifact . | . . . . Weapon 8 | . 6 . 2 Energy Gun . | . . . . Energy Cannon . | . . . . Ballistic Gun 2 | . 2 . . Ballistic Cannon 3 | . 3 . . Launcher 1 | . . . 1 Special Weapon . | . . . . Impact Weapon 1 | . 1 . . Slashing Weapon 1 | . . . 1 Piercing Weapon . | . . . . Special Melee Weapon . | . . . . Unidentified Prototypes . | . . . . Parts Lost 4 | . 2 . 2 Power 2 | . . . 2 Propulsion . | . . . . Utility . | . . . . Weapon 2 | . 2 . . Highest Loss Streak 2 | . 1 . 2 To Critical Strikes . | . . . . Average Slot Usage (%) 98 | . 94 100 99 Engine 13 | . 13 14 13 Treads 26 | . 24 28 27 Leg 1 | . 2 . . Device 5 | . 6 14 1 Storage 17 | . 14 14 21 Hackware 1 | . 4 . . Protection 2 | . . . 4 Ballistic Gun 12 | . 13 14 9 Ballistic Cannon 3 | . 11 . . Launcher 1 | . . . 3 Impact Weapon 9 | . 1 14 14 Naked Turns . | . . . . Heaviest Build 69 | 14 31 30 69 Greatest Support 60 | 20 40 40 60 Greatest Overweight (x) 9 | . 9 . 1 Average Overweight (x) . | . . . . Largest Inventory Capacity 20 | . 15 15 20 Average Capacity 15 | . 13 15 17 Most Carried 18 | . 12 15 18 Average Carried 12 | . 8 14 13 Final Capacity 15 | 8 15 15 5 Final Carried 15 | 6 12 15 4 Class Distribution -------------------- 100% | Mutant Dominant Class ---------------- Mutant | -10/Materials Mutant | -10/Mines Mutant | -10/Exiles Resources | -11 -10 -10 -10 ----------- Run | Scr Mat Min Exi Matter Collected 805 | 186 427 92 100 Remotely . | . . . . Salvage Created 720 | . 671 32 17 Parts 52 | . 50 2 . Haulers Intercepted 2 | . 2 . . Recyclers Shooed . | . . . . Parts Field Recycled . | . . . . Retrieved Matter . | . . . . Parts Self-Destructed . | . . . . Prevented . | . . . . Kills | -11 -10 -10 -10 ------- Run | Scr Mat Min Exi Combat Hostiles Destroyed 17 | . 13 1 3 Melee 1 | . . 1 . Guns 5 | . 5 . . Cannons 8 | . 8 . . AOE 3 | . . . 3 Classes Destroyed 9 | . 7 2 . Worker 2 | . 2 . . Builder 1 | . 1 . . Tunneler 1 | . . 1 . Hauler 2 | . 2 . . Operator 1 | . 1 . . Watcher 3 | . 3 . . Swarmer 3 | . 3 . . Grunt 10 | . 10 . . Assembled 8 | . . 1 7 Best Kill Streak 4 | . 4 1 3 Combat Bots Only 4 | . 4 1 3 Max Kills in Single Turn 4 | . 1 1 4 Gunslinging . | . . . . Exploded 1 | . . . 1 Melee 1 | . . 1 . Uniques/NPCs Destroyed . | . . . . Combat | -11 -10 -10 -10 -------- Run | Scr Mat Min Exi Damage Taken 1010 | . 470 23 517 Core 266 | . 95 . 171 Absorbed by Shields . | . . . . Redirected to Shielding 51 | . . . 51 Core Remaining (%) 100 | 100 . . . Volleys Fired 55 | . 51 . 4 Largest 2 | . 2 . 1 Hottest 60 | . 60 . 33 Shots Fired 104 | . 100 . 4 Gun 63 | . 63 . . Cannon 37 | . 37 . . Launcher 4 | . . . 4 Special . | . . . . Kinetic 88 | . 88 . . Thermal . | . . . . Explosive 4 | . . . 4 Electromagnetic 12 | . 12 . . Robot Hit Streak 7 | . 7 . . Robot Miss Streak 3 | . 3 . 3 Penetration Max . | . . . . Secondary Targets . | . . . . Shots Hit Robots 71 | . 62 3 6 Core Hits 43 | . 30 1 12 Critical Kills . | . . . . Critical Parts Destroyed . | . . . . Critical Strikes . | . . . . Melee Attacks 11 | . . 3 8 Impact 5 | . . 3 2 Slashing 6 | . . . 6 Piercing . | . . . . Sneak Attacks 1 | . . 1 . Combat Hostiles . | . . . . Follow-up Attacks 2 | . . . 2 Damage Inflicted 1579 | . 896 112 571 Guns 497 | . 497 . . Cannons 399 | . 399 . . Explosions 429 | . . . 429 Melee 254 | . . 112 142 Ramming . | . . . . Kinetic 825 | . 825 . . Thermal . | . . . . Explosive 429 | . . . 429 Electromagnetic 71 | . 71 . . Impact 155 | . . 112 43 Slashing 99 | . . . 99 Piercing . | . . . . Highest Corruption . | . . . . Average Corruption . | . . . . Corruption Purged . | . . . . Corruption Blocked . | . . . . Overload Shots . | . . . . Overflow Damage 43 | . . 31 12 Projectiles . | . . . . Explosions 12 | . . . 12 Melee 31 | . . 31 . Knockbacks 7 | . 6 . 1 Impact 1 | . . . 1 Kinetic 5 | . 5 . . Secondary 1 | . 1 . . Self-Inflicted Damage . | . . . . Shots . | . . . . Rammed 2 | . 2 . . Targets Rammed 2 | . 2 . . Kicked . | . . . . Crushed . | . . . . Highest Temperature 66 | . 66 2 . Average Temperature 22 | . 23 2 . Received Heat Transfer 271 | . 231 40 . Siege Activations . | . . . . Robots Corrupted . | . . . . Combat Hostiles . | . . . . Parts Fried 1 | . . 1 . Impact Corruptions 2 | . . 2 . Robots Melted . | . . . . Combat Hostiles . | . . . . Parts Melted . | . . . . Heat Transferred . | . . . . Parts Sabotaged . | . . . . Parts Stolen . | . . . . Parts Stripped . | . . . . Power Chain Reactions . | . . . . Missiles Intercepted . | . . . . Alert | -11 -10 -10 -10 ------- Run | Scr Mat Min Exi Peak Influence 174 | . 174 43 . Initial 38 | . . 38 . Average 46 | . 60 23 . Maximum Alert Level . | . . . . Low Security (%) 100 | . 100 100 . Level 1 . | . . . . Level 2 . | . . . . Level 3 . | . . . . Level 4 . | . . . . Level 5 . | . . . . High Security . | . . . . Max Security . | . . . . Squads Dispatched 5 | . 5 . . Investigation 4 | . 4 . . Extermination . | . . . . Reinforcement 1 | . 1 . . Assault . | . . . . Garrison . | . . . . Intercept . | . . . . Searches Triggered . | . . . . Construction Impeded . | . . . . Haulers Reinforced . | . . . . Active Scanning Responses . | . . . . Cargo Convoy Interrupts . | . . . . Stealth | -11 -10 -10 -10 --------- Run | Scr Mat Min Exi Distress Signals 1 | . 1 . . Communications Jammed . | . . . . Distress Signals . | . . . . Times Spotted 23 | . 17 1 5 Peak Tracking Total 5 | . 4 1 5 Tactical Retreats . | . . . . Traps | -11 -10 -10 -10 ------- Run | Scr Mat Min Exi Traps Triggered 8 | . 8 . . Indirectly . | . . . . Trap Hack Attempts . | . . . . Triggered . | . . . . Disarmed . | . . . . Reprogrammed . | . . . . Reused 2 | . . . 2 Traps Extracted . | . . . . Installed 3 | . . . 3 Triggered . | . . . . Most Traps Carried 3 | . . 3 3 Machines | -11 -10 -10 -10 ---------- Run | Scr Mat Min Exi Machines Disabled 6 | . 3 . 3 Max in Single Turn 2 | . 1 . 2 Machines Sabotaged . | . . . . Garrisons Compromised . | . . . . Overloaded Fab Kills . | . . . . Hacking | -11 -10 -10 -10 --------- Run | Scr Mat Min Exi Machines Accessed 5 | . 4 . 1 Terminals 4 | . 4 . . Fabricators . | . . . . Repair Stations . | . . . . Recycling Units . | . . . . Scanalyzers . | . . . . Garrison Access . | . . . . Total Hacks 8 | . 7 . 1 Successful 5 | . 4 . 1 Failed 3 | . 3 . . Catastrophic 1 | . 1 . . Database Lockouts . | . . . . Manual 4 | . 3 . 1 Terminals 7 | . 7 . . Fabricators . | . . . . Repair Stations . | . . . . Recycling Units . | . . . . Scanalyzers . | . . . . Garrison Access . | . . . . Terminal Hacks 5 | . 4 . 1 Branch Access Points 1 | . 1 . . Unreport Threat 2 | . 2 . . Recall Investigation 1 | . 1 . . EX-Prototype ID Bank 1 | . . . 1 Fabricator Hacks . | . . . . Repair Station Hacks . | . . . . Recycling Unit Hacks . | . . . . Scanalyzer . | . . . . Garrison Access Hacks . | . . . . Unauthorized Hacks . | . . . . Terminals . | . . . . Fabricators . | . . . . Repair Stations . | . . . . Recycling Units . | . . . . Scanalyzers . | . . . . Garrison Access . | . . . . Data Cores Recovered . | . . . . Used . | . . . . Hacking Detections 3 | . 3 . . Full Trace Events 1 | . 1 . . Feedback Events . | . . . . Feedback Blocked . | . . . . Robot Schematics Acquired . | . . . . Robots Built . | . . . . Authchips . | . . . . Time . | . . . . Total Robot Build Rating . | . . . . Part Schematics Acquired . | . . . . Parts Built . | . . . . Authchips . | . . . . Time . | . . . . Total Part Build Rating . | . . . . Parts Repaired . | . . . . Time . | . . . . Parts Recycled . | . . . . Recycled Matter . | . . . . Retrieved Matter . | . . . . Retrieved Components . | . . . . Parts Scanalyzed . | . . . . Part Schematics Acquired . | . . . . Parts Damaged . | . . . . Bothacking | -11 -10 -10 -10 ------------ Run | Scr Mat Min Exi Used RIF Installer . | . . . . Robots Hacked . | . . . . Non-combat . | . . . . Combat . | . . . . Robot Hacks Applied . | . . . . Relay Couplers Released . | . . . . Fabnet Peak Effective % . | . . . . Robots Rewired . | . . . . Allies Hacked . | . . . . Hacks Repelled . | . . . . Allies | -11 -10 -10 -10 -------- Run | Scr Mat Min Exi Total Allies . | . . . . Largest Group . | . . . . Highest-Rated Group . | . . . . Highest-Rated Ally . | . . . . Total Orders . | . . . . Ally Attacks . | . . . . Total Damage . | . . . . Kills . | . . . . Allies Corrupted . | . . . . Allies Melted . | . . . . Intel | -11 -10 -10 -10 ------- Run | Scr Mat Min Exi Robot Analysis Total . | . . . . Derelict Logs Recovered 2 | . . 2 . Drone Launches . | . . . . Drone Recoveries . | . . . . Exploration | -11 -10 -10 -10 ------------- Run | Scr Mat Min Exi Turns Passed 3141 | . 1080 654 1407 Spaces Moved 1613 | 1 547 389 676 Core 3 | . 3 . . Treads 1545 | . 488 389 668 Legs 65 | 1 56 . 8 Wheels . | . . . . Hover . | . . . . Flight . | . . . . Fastest Speed 45 | 120 120 160 45 Average Speed 175 | 120 158 160 198 Slowest Speed 500 | 120 500 160 240 Overloaded Moves 6 | . . . 6 Propulsion Burnouts . | . . . . Robots Hopped . | . . . . Cave-ins Triggered . | . . . . Exploration Rate (%) 63 | 2 96 88 68 Regions Visited 3 Branch Regions 2 Pre-discovered Areas . | . . . . Known Exits Taken 1 | . 1 . . Unknown Exits Taken 2 | 1 . 1 . Scrap Searched 1 | . . 1 . Spaces Dug . | . . . . Terrain Destroyed 36 | . . . 36 Melee . | . . . . Projectile . | . . . . AOE 36 | . . . 36 Terrain Rammed . | . . . . Walls Destroyed . | . . . . Machines Disabled . | . . . . Actions | -11 -10 -10 -10 --------- Run | Scr Mat Min Exi Total 1806 | . 655 418 733 Wait 30 | . 21 9 . Move 1610 | . 546 388 676 Hop . | . . . . Pick Up 28 | . 10 9 9 Fast Attach 12 | . 10 . 2 Attach 6 | . 3 . 3 Detach . | . . . . Swap 18 | . 7 2 9 Drop 33 | . 5 7 21 Fire 55 | . 51 . 4 Melee 9 | . . 3 6 Ram . | . . . . Kick . | . . . . Crush 2 | . 2 . . Escape Stasis . | . . . . Rewire . | . . . . Trap 3 | . . . 3 Miscellaneous . | . . . . Route ------- -11/Scrapyard -10/Materials (discovered 5 exits: *Mat x3 / *Min x2) -10/Mines (discovered 3 exits: *Mat x2 / *Exi) -10/Exiles (discovered 1 exit: [*Min]) History --------- Turn | Location | Event 1 | -11/Scrapyard | Discovered new exit (range 0) 1 | -11/Scrapyard | Entered Materials 190 | -10/Materials | Discovered new exit (range 12) 311 | -10/Materials | Build established: Mutant 372 | -10/Materials | Discovered new exit (range 8) 485 | -10/Materials | Discovered new exit (range 15) 801 | -10/Materials | Discovered new exit (range 11) 944 | -10/Materials | Identified exit to Mines 984 | -10/Materials | Discovered new exit (range 7) 1081 | -10/Materials | Entered Mines 1258 | -10/Mines | Assembled infested the area 1356 | -10/Mines | Identified exit to Materials 1436 | -10/Mines | Discovered exit to Materials (range 3) 1443 | -10/Mines | Received a Rocket Launcher from a helpful Derelict 1512 | -10/Mines | Found a hidden stash of uninstalled traps 1547 | -10/Mines | Learned Materials security intel 1728 | -10/Mines | Deemed a non-threat by the Exiles lab entrance 1728 | -10/Mines | Discovered new exit (range 5) 1735 | -10/Mines | Entered Exiles 1774 | -10/Exiles | Met 8R-AWN 1801 | -10/Exiles | Met EX-HEX 1912 | -10/Exiles | Met EX-DEC 2364 | -10/Exiles | Met EX-BIN 2391 | -10/Exiles | Aligned with FarCom system 2393 | -10/Exiles | Given EX-Vault access code 2455 | -10/Exiles | Opened EX-Vault 2477 | -10/Exiles | Found Potential Leg 2480 | -10/Exiles | Found Potential Leg 2486 | -10/Exiles | Found AWS/Autocannon 2490 | -10/Exiles | Found Skeleton Box 2541 | -10/Exiles | Warned to stay clear of 0b10 Research branches 2713 | -10/Exiles | Discovered new exit (range 14) 3098 | -10/Exiles | Attacked by the Exiles 3109 | -10/Exiles | Core integrity fell below 50% 3128 | -10/Exiles | Core integrity fell below 20% 3142 | -10/Exiles | Destroyed by 8R-AWN with 8R-AWN's Boregun Last Messages --------------- 03136_ Hammer follow-up attack on 8R-AWN. 03137_ Penetrated by HV Slug. 03137_ HV Slug penetrates Wall. 03137_ Penetrated by HV Slug. 03137_ HV Slug penetrates Earth. 03139_ 8R-AWN triggered EMP Trap. 03139_ A bubble of electromagnetic force engulfs the area. 03139_ EMP Trap short circuited. 03139_ A bubble of electromagnetic force engulfs the area. 03139_ Ion Engine destroyed. 03140_ Penetrated by HV Slug. 03140_ HV Slug penetrates Wall. 03140_ Penetrated by HV Slug. 03140_ HV Slug penetrates Wall. 03142_ Hammer follow-up attack on 8R-AWN. 03142_ 8R-AWN knocked back. 03142_ Penetrated by HV Slug. 03142_ Ion Engine destroyed. 03142_ HV Slug penetrates Wall. 03142_ Penetrated by HV Slug. Map ----- +----------------------------------------------------+ | """#?????????????????????????????????????? | | """"?????????????????????????????????????? | | """#?????????????????????????????????????? | | "X" """"?????????????????????????????????????? | | """ #?????????????????????????????????????? | | """""""""#?????????????????????????????????????? | | ###########?????????????????????????????????????? | | #???????????????????????????????????????????????? | | #???????????????????????????????????????????????? | | ##??????????????????????????????????????????????? | | ##???###########???????????????????????????????? | | ##### """"""##??????????????????????????????? | | "! " """"##?????????????????????????????? | | !" " #?????????????????????????????? | | " [ """#?????????????????????????????? | | = a"#???????????#####?????????????? | | = "##?????????##"!!#?????????????? | | ! "###???????#" #?????????????# | | ""#??????##" ##????????????# | | " ] "#????### ###????????### | | ##""" ! ##???# ########## | | ?##""" ##?## #""""## | | ??#"""" ### * | | ?##"" ## * | | ##"""" ####! | | "" g @ ; #"""""#### | | #"""##########??#### | | ######??????????????##### | | ##???????????????????????# | | #????????????????????????? | | "" #????????????????????????? | | #""" " " "" % #????????????????????????? | | #####""" """ # ##????????????????????????? | | ????###""""### #????????????????????????? | | ###???######?## # #????????????????????????? | | " #???????????### ?????????????????????????? | | #?????????????########?????????????????????????? | | "#??????????????????????????????????????????????? | | "#??????????????????????????????????????????????? | | ###??????????????????????????????????????????????? | | ?????????????????????????????????????????????????? | | ?????????????????????????????????????????????????? | | ?????????????????????????????????????????????????? | | ?????????????????????????????????????????????????? | | ?????????????????????????????????????????????????? | | ?????????????????????????????????????????????????? | | ?????????????????????????????????????????????????? | | ?????????????????????????????????????????????????? | | ?????????????????????????????????????????????????? | | ?????????????????????????????????????????????????? | +----------------------------------------------------+ Best States ------------- Heat Dissipation 35 Energy Generation 10 Energy Capacity 250 Matter Stores 300 Matter Capacity 300 Sight Range 16 Robot Scan Range 14 Terrain Scan Density 10 Propulsion Shielding 33 Weapon Shielding 33 Evasion (%) 55 Recoil Reduction 2 Offensive Hacking 10 Item Schematics ----------------- None Robot Schematics ------------------ None Fabricated ------------ Nothing Alien Tech Used ----------------- None Achievements -------------- None Challenges ------------ None Game ------ Seed WarpAnalysisRail Manual? 0 Play Time 00:25:27 Cumulative 121.6 hours Start 2022.06.10 @ 01:10:37 End 2022.06.10 @ 01:37:26 Sessions 1 Manual Loads 0 Difficulty Rogue Special Mode None Game No. 82 Rogue 80 Adventurer 0 Explorer 2 Win Type - Total 0 Types 0/0/0/0/0/0/0/0/0 Lore% 27 Gallery% 38 Achievement% 32 Wizard Run 0 Options --------- ASCII 0 Keyboard 0 Movement Numpad Keybinds 0 Fullscreen 1 Font 18/SmallcapsGlow Map View 76x50 Tactical HUD 1 Map Filters NONE Filters NONE Steam 1 RUN: da089e1b-077e-4423-9f87-9e35f62ccb3d